Workbook

Sheet Procedure
A1: Tilt angle calculator
A2: PROCEDURE
A3: The following calculator works out the forward and backward tilt angle range of your forklift truck.
A5: Method:
A6: Step 1
A7: Adjust the forklift tilt control until the forks are perfectly level with the ground. Use a spirit level if on level ground, or measure from the forktip and heel to the ground.
A8: Mark a line, with chalk or similar, 1m up from the mast fulcrum on the rear face of the mast.
A9: Measure from this line to a suitable reference point at the same height on the forklift body. Enter value for length (a), and select units used.
A10: Step 2
A11: Adjust mast tilt to fully forward position. (You may need to raise the forks slightly so they don't hit the ground)
A12: Remeasure between the reference point and the chalk line on the mast. Enter value for length (b), and select units used.
A13: Step 3
A14: Adjust mast tilt to fully backward position.
A15: Remeasure between the reference point and the chalk line on the mast. Enter value for length (c), and select units used.
A17: Results:
A18: The tilt-angle calculator will use the above measurments to determine the actual tilt range of your truck.

Sheet Step 1
B1: Tilt angle calculator
A2: STEP 1
A4: Enter length (a) | B4: 45 | C4: cm

Sheet Step 2
B1: Tilt angle calculator
A2: STEP 2
A4: Enter length (b) | B4: 53.5 | C4: cm

Sheet Step 3
B1: Tilt angle calculator
A2: STEP 3
A4: Enter length (c) | B4: 31 | C4: cm

Sheet Results
B1: Tilt angle calculator
A2: RESULTS
A4: The values you measured are:
A5: Forks level, length (a) | B5: ='Step 1'!B4 -> 45 | C5: ='Step 1'!C4 -> cm
A6: Forks tilted forward, length (b) | B6: ='Step 2'!B4 -> 53.5 | C6: ='Step 2'!C4 -> cm
A7: Forks tilted back, length (c) | B7: ='Step 3'!B4 -> 31 | C7: ='Step 3'!C4 -> cm
A8: =IF(OR(B18>B16,B17<B16),"Please re-check measurements","") -> 
A9: From these measurements the tilt angle range is:
A10: Maximum forward tilt angle | B10: =IF(A8="",D25-D23,"") -> 4.892932802 | C10: degree
A11: Maximum backward tilt angle | B11: =IF(A8="",D23-D27,"") -> 7.975483131 | C11: degree
A16: Forks level, length (a) | B16: =MAX(E16:G16) -> 0.45 | D16: m | E16: =IF(C5="cm",B5/100,0) -> 0.45 | F16: =(IF(C5="inch",B5*0.0254,0)) -> 0 | G16: =(IF(C5="m",B5,0)) -> 0
A17: Forks tilted forward, length (b) | B17: =MAX(E17:G17) -> 0.535 | D17: m | E17: =IF(C6="cm",B6/100,0) -> 0.535 | F17: =(IF(C6="inch",B6*0.0254,0)) -> 0 | G17: =(IF(C6="m",B6,0)) -> 0
A18: Forks tilted back, length (c) | B18: 0.31 | D18: m | E18: =IF(C7="cm",B7/100,0) -> 0.31 | F18: =(IF(C7="inch",B7*0.0254,0)) -> 0 | G18: =(IF(C7="m",B7,0)) -> 0
A19: fulcrum offset (d) | B19: 0.15 | D19: m
A20: radius of circle (r) | B20: =SQRT(B19^2+1) -> 1.011187421 | D20: m
A21: base of triangle | B21: =SQRT((B16-B19)^2+1) -> 1.044030651 | D21: m
B22: cos (A) | D22: Angle A
A23: Level tilt position (a) | B23: =(B16^2-$B$20^2-$B$21^2)/(-2*$B$20*$B$21) -> 0.9046039177 | D23: =ACOS(B23)*180/PI() -> 25.23000984
B24: cos (B) | D24: Angle B
A25: Maximum forward tilt (b) | B25: =(B17^2-$B$20^2-$B$21^2)/(-2*$B$20*$B$21) -> 0.8649505339 | D25: =ACOS(B25)*180/PI() -> 30.12294265
B26: cos (C) | D26: Angle C
A27: Maximum backward tilt (c) | B27: =(B18^2-$B$20^2-$B$21^2)/(-2*$B$20*$B$21) -> 0.9549965129 | D27: =ACOS(B27)*180/PI() -> 17.25452671

Sheet _SSC (hidden)
A1: _Ctrl_1 | B1: {"WidgetClassification":2,"State":1,"Role":2,"ImagePath":"","EPlacement":1,"ShowText":true,"Theme":0,"ButtonSite":1,"IsInline":false,"CellName":"_Ctrl_1","CellAddress":"='Results'!$A$19","WidgetName":11,"HiddenRow":1,"SheetCodeName":null,"ControlId":null} | C1: {"IsHide":false,"SheetId":0,"Name":"Procedure","HiddenRow":0,"VisibleRange":"","SheetTheme":{"TabColor":"","BodyColor":"","BodyImage":""}} | D1: {"ButtonStyle":0,"Name":"Tilt-angle calculator","HideSscPoweredlogo":false,"CopyProtect":{"IsEnabled":false,"DomainName":""},"Theme":{"BgColor":"#FFFFFFFF","BgImage":"","InputBorderStyle":0},"Layout":3,"SmartphoneSettings":{"ViewportLock":false,"UseOldViewEngine":false,"EnableZoom":false,"EnableSwipe":true,"HideToolbar":true,"InheritBackgroundColor":true,"CheckboxFlavor":2},"SmartphoneTheme":0,"InputDetection":2,"Toolbar":{"Position":1,"IsSubmit":false,"IsPrint":false,"IsPrintAll":false,"IsReset":false,"IsUpdate":false},"AspnetConfig":{"BrowseUrl":"http://localhost/ssc","FileExtension":0},"ConfigureSubmit":{"IsShowCaptcha":false,"IsUseSscWebServer":true,"ReceiverCode":"","IsFreeService":false,"IsAdvanceService":false,"IsDemonstrationService":true,"AfterSuccessfulSubmit":"","AfterFailSubmit":"","AfterCancelWizard":"","IsUseOwnWebServer":false,"OwnWebServerURL":"","OwnWebServerTarget":"","SubmitTarget":0},"Flavor":3,"Edition":0,"IgnoreBgInputCell":false} | E1: {"Captcha":{"Heading":"Enter the number displayed below.","Message":"This is to verify that you are a human visitor, to prevent automated form submissions.","OkButton":"OK","CancelButton":"Cancel","ErrorMessage":"Your answer is incorrect, please try again."},"RequiredField":{"ErrorMessage":"The fields with the red border are required.","OkButton":"OK","DDLDefaultRequiredText":"Please Select"},"WizardButton":{"Next":"Next","Previous":"Previous","Cancel":"Start","Finish":"End"},"ToolbarButton":{"Submit":"Submit","Print":"Print","PrintAll":"Print All","Reset":"Reset","Update":"Update","Back":"Back"},"BrowserAndLocation":{"Browsers":[],"ConversionPath":"C:\\Users\\Antony\\Documents\\SpreadsheetConverter"},"AdvancedSettingsModels":[],"Dropbox":{"AccessToken":"","AccessSecret":""},"SpreadsheetServer":{"Username":"","Password":"","ServerUrl":""},"ConfigureSubmitDefault":{"Email":""}}
A2: _Ctrl_2 | B2: {"WidgetClassification":2,"State":1,"Role":2,"ImagePath":"","EPlacement":1,"ShowText":true,"Theme":0,"ButtonSite":1,"IsInline":false,"CellName":"_Ctrl_2","CellAddress":"='Results'!$A$10","WidgetName":11,"HiddenRow":2,"SheetCodeName":null,"ControlId":null} | C2: {"IsHide":false,"SheetId":0,"Name":"Step 1","HiddenRow":0,"VisibleRange":"","SheetTheme":{"TabColor":"","BodyColor":"","BodyImage":""}}
A3: _Ctrl_3 | C3: {"IsHide":false,"SheetId":0,"Name":"Results","HiddenRow":0,"VisibleRange":"","SheetTheme":{"TabColor":"","BodyColor":"","BodyImage":""}}
A4: _Ctrl_4 | B4: {"WidgetClassification":0,"State":1,"IsRequired":false,"DDLDefaultRequiredText":"cm","ListItem":"cm\r\nm\r\ninch","VlookupRange":"","ShowListLabel":true,"ShowDt":false,"CellName":"_Ctrl_4","CellAddress":"='Step 1'!$C$3","WidgetName":3,"HiddenRow":4,"SheetCodeName":null,"ControlId":null} | C4: {"IsHide":true,"SheetId":0,"Name":"Step 2","HiddenRow":0,"VisibleRange":"","SheetTheme":{"TabColor":"","BodyColor":"","BodyImage":""}}
A5: _Ctrl_5 | C5: {"IsHide":true,"SheetId":0,"Name":"Step 3","HiddenRow":0,"VisibleRange":"","SheetTheme":{"TabColor":"","BodyColor":"","BodyImage":""}}
A6: _Ctrl_6
A7: _Ctrl_7 | B7: {"WidgetClassification":0,"State":1,"IsRequired":false,"DDLDefaultRequiredText":"cm","ListItem":"cm\r\nm\r\ninch","VlookupRange":"","ShowListLabel":true,"ShowDt":false,"CellName":"_Ctrl_7","CellAddress":"='Step 2'!$C$2","WidgetName":3,"HiddenRow":7,"SheetCodeName":null,"ControlId":null}
A8: _Ctrl_8 | B8: {"WidgetClassification":0,"State":1,"IsRequired":false,"DDLDefaultRequiredText":"Please Select","ListItem":"cm\r\nm\r\ninch","VlookupRange":"","ShowListLabel":false,"ShowDt":false,"CellName":"_Ctrl_8","CellAddress":"='Step 3'!$C$2","WidgetName":3,"HiddenRow":8,"SheetCodeName":null,"ControlId":null}
A9: _Ctrl_9

Sheet _Options (hidden)
A1: cm | B1: cm | C1: cm | D1: cm | E1: cm | F1: cm | G1: cm | H1: cm | I1: cm | J1: cm | K1: cm | L1: cm | M1: cm | N1: cm | O1: cm | P1: cm | Q1: cm | R1: cm | S1: cm | T1: cm | U1: cm | V1: cm | W1: cm | X1: cm | Y1: cm | Z1: cm | AA1: cm | AB1: cm | AC1: cm | AD1: cm | AE1: cm | AF1: cm | AG1: cm | AH1: cm | AI1: cm | AJ1: cm | AK1: cm | AL1: cm | AM1: cm | AN1: cm | AO1: cm | AP1: cm | AQ1: cm | AR1: cm | AS1: cm | AT1: cm | AU1: cm | AV1: cm | AW1: cm | AX1: cm | AY1: m | AZ1: m | BA1: m | BB1: m | BC1: cm | BD1: cm | BE1: cm | BF1: cm | BG1: cm | BH1: cm | BI1: cm | BJ1: cm | BK1: cm | BL1: cm | BM1: cm | BN1: cm | BO1: cm | BP1: cm
A2: m | B2: m | C2: m | D2: m | E2: m | F2: m | G2: m | H2: m | I2: m | J2: m | K2: m | L2: m | M2: m | N2: m | O2: m | P2: m | Q2: m | R2: m | S2: m | T2: m | U2: m | V2: m | W2: m | X2: m | Y2: m | Z2: m | AA2: m | AB2: m | AC2: m | AD2: m | AE2: m | AF2: m | AG2: m | AH2: m | AI2: m | AJ2: m | AK2: m | AL2: m | AM2: m | AN2: m | AO2: m | AP2: m | AQ2: m | AR2: m | AS2: m | AT2: m | AU2: m | AV2: m | AW2: m | AX2: m | AY2: cm | AZ2: cm | BA2: cm | BB2: cm | BC2: m | BD2: m | BE2: m | BF2: m | BG2: m | BH2: m | BI2: m | BJ2: m | BK2: m | BL2: m | BM2: m | BN2: m | BO2: m | BP2: m
Y3: Inch | AA3: inch | AB3: inch | AD3: inch | AE3: inch | AF3: inch | AG3: inch | AH3: inch | AI3: inch | AJ3: inch | AK3: inch | AL3: inch | AM3: inch | AN3: inch | AO3: inch | AP3: inch | AQ3: inch | AR3: inch | AS3: inch | AT3: inch | AU3: inch | AV3: inch | AW3: inch | AX3: inch | AY3: inch | AZ3: inch | BA3: inch | BB3: inch | BC3: inch | BD3: inch | BE3: inch | BF3: inch | BG3: inch | BH3: inch | BI3: inch | BJ3: inch | BK3: inch | BL3: inch | BM3: inch | BN3: inch | BO3: inch | BP3: inch
